fUST/lending_fUST_20260501
["ID","MTS","AMOUNT","RATE_DAILY","PERIOD"]
[421421321,1777612245000,-897.99,0.00019178,2]
[421421316,1777612245000,-1693.57,0.00019178,2]
[421421339,1777612245000,-4633.95,0.00019178,2]
[421421372,1777612245000,-547.4,0.00019178,2]
[421421347,1777612245000,-500.0,0.00019178,2]
[421421363,1777612245000,-709.03,0.00019178,2]
[421421366,1777612245000,-647.09066682,0.00019178,2]
[421421368,1777612245000,-500.0,0.00019178,2]
[421421360,1777612245000,-500.0,0.00019178,2]
[421421361,1777612245000,-553.22,0.00019178,2]
[421421365,1777612245000,-15959.04,0.00019178,2]
[421421362,1777612245000,-519.12,0.00019178,2]
[421421367,1777612245000,-500.0,0.00019178,2]
[421421364,1777612245000,-500.0,0.00019178,2]
[421421375,1777612245000,-500.0,0.00019178,2]
[421421379,1777612245000,-500.0,0.00019178,2]
[421421373,1777612245000,-500.0,0.00019178,2]
[421421378,1777612245000,-3521.22,0.00019178,2]
[421421380,1777612245000,-8022.62890782,0.00019178,2]
[421421374,1777612245000,-500.0,0.00019178,2]
[421421377,1777612245000,-500.0,0.00019178,2]
[421421376,1777612245000,-3897.15,0.00019178,2]
[421421340,1777612245000,-576.12,0.00019178,2]
[421421371,1777612245000,-500.0,0.00019178,2]
[421421358,1777612245000,-539.04492947,0.00019178,2]
[421421359,1777612245000,-10070.37,0.00019178,2]
[421421337,1777612245000,-2154.24,0.00019178,2]
[421421348,1777612245000,-1192.55,0.00019178,2]
[421421341,1777612245000,-1000.71,0.00019178,2]
[421421338,1777612245000,-7181.99,0.00019178,2]
[421421342,1777612245000,-1097.06,0.00019178,2]
[421421344,1777612245000,-500.0,0.00019178,2]
[421421343,1777612245000,-500.0,0.00019178,2]
[421421346,1777612245000,-500.0,0.00019178,2]
[421421370,1777612245000,-500.0,0.00019178,2]
[421421345,1777612245000,-5201.62,0.00019178,2]
[421421349,1777612245000,-500.0,0.00019178,2]
[421421351,1777612245000,-500.0,0.00019178,2]
[421421352,1777612245000,-609.29,0.00019178,2]
[421421353,1777612245000,-14020.75688698,0.00019178,2]
[421421355,1777612245000,-500.0,0.00019178,2]
[421421354,1777612245000,-67672.29311302,0.00019178,2]
[421421357,1777612245000,-1251.04,0.00019178,2]
[421421356,1777612245000,-5121.6,0.00019178,2]
[421421350,1777612245000,-14758.27,0.00019178,2]
[421421383,1777612246000,-3250.67284012,0.00018999,2]
[421421381,1777612246000,-419.77939956,0.00018999,2]
[421421382,1777612246000,-889.42,0.00018999,2]
[421421386,1777612246000,-671.78911749,0.00018999,2]
[421421390,1777612246000,-786.32113908,0.00019,2]
[421421385,1777612246000,-3201.62221232,0.00018999,2]
[421421388,1777612246000,-7761.494452,0.00018999,2]
[421421391,1777612246000,-418.93857618,0.00019,2]
[421421389,1777612246000,-7761.494452,0.00018999,2]
[421421387,1777612246000,-7089.70533451,0.00018999,2]
[421421408,1777612247000,-500.0,0.00019178,2]
[421421406,1777612247000,-12234.16109218,0.00019178,2]
[421421401,1777612247000,-7761.494452,0.00019,2]
[421421405,1777612247000,-7761.49444894,0.00019,2]
[421421402,1777612247000,-7761.494452,0.00019,2]
[421421399,1777612247000,-7761.494452,0.00019,2]
[421421404,1777612247000,-7761.494452,0.00019,2]
[421421410,1777612247000,-1468.12,0.00019178,2]
[421421400,1777612247000,-7761.494452,0.00019,2]
[421421397,1777612247000,-366.0,0.00019,2]
[421421398,1777612247000,-5839.6858683,0.00019,2]
[421421403,1777612247000,-7761.494452,0.00019,2]
[421421409,1777612247000,-1109.33,0.00019178,2]
[421421396,1777612247000,-350.54886844,0.00019,2]
[421421411,1777612247000,-500.0,0.00019178,2]
[421421407,1777612247000,-500.0,0.00019178,2]
[421421416,1777612247000,-500.0,0.00019178,2]
[421421417,1777612247000,-500.0,0.00019178,2]
[421421423,1777612247000,-8188.99805271,0.00019178,2]
[421421419,1777612247000,-500.0,0.00019178,2]
[421421414,1777612247000,-784.65,0.00019178,2]
[421421422,1777612247000,-500.0,0.00019178,2]
[421421415,1777612247000,-500.0,0.00019178,2]
[421421413,1777612247000,-7815.8,0.00019178,2]
[421421421,1777612247000,-17273.81,0.00019178,2]
[421421420,1777612247000,-335.19034814,0.00019178,2]
[421421412,1777612247000,-230.44091991,0.00019178,2]
[421421418,1777612247000,-588.35964516,0.00019178,2]
[421421468,1777613432000,-3286.50611972,0.00012874,2]
[421421471,1777613432000,-186.30134928,0.00013319,2]
[421421470,1777613432000,-594.0,0.00013004,2]
[421421472,1777613432000,-500.0,0.00013674,2]
[421421469,1777613432000,-1713.49388028,0.00012874,2]
[421421475,1777613432000,-176.75948856,0.0001692,2]
[421421474,1777613432000,-219.83559215,0.00015319,2]
[421421477,1777613432000,-160.0,0.00017321,2]
[421421476,1777613432000,-253.36983502,0.00017319,2]
[421421478,1777613432000,-2892.91631818,0.000179,2]
[421421473,1777613432000,-1000.0,0.00013699,2]
[421421519,1777613438000,-211.30210208,0.00017721,2]
[421421520,1777613438000,-1125.08368182,0.000179,2]
[421421543,1777613439000,-500.0,0.00018976,2]
[421421541,1777613439000,-500.0,0.00018976,2]
[421421539,1777613439000,-500.0,0.00018976,2]
[421421540,1777613439000,-500.0,0.00018976,2]
[421421537,1777613439000,-500.0,0.00018976,2]
[421421546,1777613439000,-500.0,0.00018976,2]
[421421535,1777613439000,-358.47264884,0.00018976,2]
[421421526,1777613439000,-155.32536359,0.000189,3]
[421421534,1777613439000,-500.0,0.00018976,2]
[421421532,1777613439000,-4000.0,0.000189,2]
[421421527,1777613439000,-164.11986155,0.000189,3]
[421421524,1777613439000,-185.0,0.00018296,2]
[421421531,1777613439000,-195.206,0.000189,2]
[421421522,1777613439000,-203.66,0.000182,2]
[421421529,1777613439000,-6868.42760681,0.000189,2]
[421421536,1777613439000,-500.0,0.00018976,2]
[421421542,1777613439000,-500.0,0.00018976,2]
[421421538,1777613439000,-500.0,0.00018976,2]
[421421545,1777613439000,-549.63758771,0.00018976,2]
[421421581,1777613439000,-1658.55038045,0.00018977,2]
[421421569,1777613439000,-26.12308343,0.00018977,2]
[421421557,1777613439000,-500.0,0.00018976,2]
[421421559,1777613439000,-500.0,0.00018976,2]
[421421563,1777613439000,-553.07840965,0.00018976,2]
[421421565,1777613439000,-500.0,0.00018976,2]
[421421549,1777613439000,-338.0047746,0.00018976,2]
[421421554,1777613439000,-205.98565753,0.00018976,2]
[421421567,1777613439000,-276.1893674,0.00018976,2]
[421421551,1777613439000,-500.0,0.00018976,2]
[421421561,1777613439000,-500.0,0.00018976,2]
[421421552,1777613439000,-647.89724745,0.00018976,2]
[421421550,1777613439000,-500.0,0.00018976,2]
[421421548,1777613439000,-500.0,0.00018976,2]
[421421547,1777613439000,-170.57423744,0.00018976,2]
[421421556,1777613439000,-500.0,0.00018976,2]
[421421544,1777613439000,-500.0,0.00018976,2]
[421421676,1777613444000,-5205.41443808,0.00018977,2]
[421421691,1777613444000,-18121.95621869,0.00018977,2]
[421421693,1777613444000,-608.45055747,0.00018977,2]
[421421701,1777613444000,-7676.85178447,0.00018977,2]
[421421721,1777613447000,-3858.5496,0.00018977,2]
[421421720,1777613447000,-8114.48246376,0.00018977,2]
[421421718,1777613447000,-152.0,0.00018746,7]
[421421719,1777613447000,-7584.25820132,0.00018977,2]
[421421848,1777614638000,-816.0,0.00012867,2]
[421421849,1777614638000,-454.0024088,0.00012904,2]
[421421851,1777614638000,-1000.0,0.00013449,2]
[421421850,1777614638000,-267.15462114,0.00012965,2]
[421421845,1777614638000,-864.0,0.00012226,2]
[421421846,1777614638000,-229.81185049,0.00012533,2]
[421421838,1777614638000,-300.0,0.00010635,2]
[421421841,1777614638000,-720.0,0.00011115,2]
[421421842,1777614638000,-420.0,0.00011691,2]
[421421847,1777614638000,-587.0,0.00012852,2]
[421421855,1777614638000,-264.86789548,0.00014533,2]
[421421861,1777614638000,-500.0,0.00014999,2]
[421421853,1777614638000,-823.0,0.00014128,2]
[421421856,1777614638000,-500.0,0.00014773,2]
[421421852,1777614638000,-1000.0,0.00013699,2]
[421421857,1777614638000,-1222.0180166,0.00014774,2]
[421421859,1777614638000,-244.0,0.00014793,2]
[421421869,1777614638000,-500.0,0.00015971,2]
[421421862,1777614638000,-500.0,0.00014999,2]
[421421863,1777614638000,-52173.73003647,0.00015,2]
[421421864,1777614638000,-1693.98,0.00015,2]
[421421858,1777614638000,-1000.0,0.00014793,2]
[421421839,1777614638000,-300.0,0.00010635,2]
[421421854,1777614638000,-619.33786295,0.00014175,2]
[421421840,1777614638000,-300.0,0.00010635,2]
[421421829,1777614638000,-300.0,9.907e-05,2]
[421421843,1777614638000,-302.0,0.00011691,2]
[421421816,1777614638000,-556.0,9.714e-05,2]
[421421866,1777614638000,-1824.69817025,0.00015373,3]
[421421817,1777614638000,-151.0,9.812e-05,2]
[421421815,1777614638000,-5000.0,9.714e-05,2]
[421421818,1777614638000,-300.0,9.907e-05,2]
[421421819,1777614638000,-300.0,9.907e-05,2]
[421421820,1777614638000,-300.0,9.907e-05,2]
[421421822,1777614638000,-300.0,9.907e-05,2]
[421421832,1777614638000,-300.0,9.907e-05,2]
[421421823,1777614638000,-300.0,9.907e-05,2]
[421421821,1777614638000,-300.0,9.907e-05,2]
[421421824,1777614638000,-300.0,9.907e-05,2]
[421421825,1777614638000,-300.0,9.907e-05,2]
[421421830,1777614638000,-300.0,9.907e-05,2]
[421421827,1777614638000,-300.0,9.907e-05,2]
[421421828,1777614638000,-300.0,9.907e-05,2]
[421421826,1777614638000,-300.0,9.907e-05,2]
[421421831,1777614638000,-300.0,9.907e-05,2]
[421421833,1777614638000,-600.0,0.00010104,2]
[421421834,1777614638000,-151.0,0.00010115,2]
[421421836,1777614638000,-194.7558055,0.00010533,2]
[421421835,1777614638000,-151.0,0.00010533,2]
[421421837,1777614638000,-1200.0,0.00010634,2]
[421421844,1777614638000,-1680.0,0.00011697,2]
[421421860,1777614638000,-164.55627621,0.000149,2]
[421421916,1777614638000,-10174.307403,0.00019178,2]
[421421865,1777614638000,-1000.0,0.00015,2]
[421421898,1777614638000,-151.0,0.000189,2]
[421421908,1777614638000,-872.844666,0.00019063,2]
[421421897,1777614638000,-500.0,0.00018899,2]
[421421901,1777614638000,-545.08,0.00018976,2]
[421421899,1777614638000,-151.0,0.000189,2]
[421421900,1777614638000,-3132.95863908,0.00018966,3]
[421421902,1777614638000,-229.361105,0.00018997,2]
[421421905,1777614638000,-152.0,0.00019024,7]
[421421903,1777614638000,-42635.71642071,0.00018998,2]
[421421904,1777614638000,-3130.0,0.00019,2]
[421421906,1777614638000,-160.0,0.00019063,2]
[421421907,1777614638000,-516.422333,0.00019063,2]
[421421910,1777614638000,-2275.99447094,0.00019066,2]
[421421909,1777614638000,-409.809469,0.00019063,2]
[421421911,1777614638000,-164.55627619,0.00019078,2]
[421421912,1777614638000,-501.4501117,0.00019173,2]
[421421920,1777614638000,-500.0,0.00019178,2]
[421421913,1777614638000,-555.06533048,0.00019173,2]
[421421917,1777614638000,-167.008056,0.00019178,2]
[421421919,1777614638000,-500.0,0.00019178,2]
[421421914,1777614638000,-10387.209747,0.00019178,2]
[421421918,1777614638000,-156.08603,0.00019178,2]
[421421867,1777614638000,-359.9280144,0.00015422,2]
[421421896,1777614638000,-501.28595257,0.00018794,2]
[421421892,1777614638000,-656.37900523,0.0001853,2]
[421421915,1777614638000,-861.83429,0.00019178,2]
[421421890,1777614638000,-500.0,0.00018529,2]
[421421889,1777614638000,-3030.05847756,0.00018367,3]
[421421870,1777614638000,-1952.80645546,0.00015972,3]
[421421871,1777614638000,-160.6162903,0.00016079,2]
[421421875,1777614638000,-500.0,0.00017024,2]
[421421868,1777614638000,-1152.0,0.00015531,2]
[421421872,1777614638000,-151.0,0.00016162,2]
[421421877,1777614638000,-500.0,0.00017024,2]
[421421879,1777614638000,-2427.37832391,0.00017169,3]
[421421878,1777614638000,-427.77432689,0.00017024,2]
[421421882,1777614638000,-2739.57457783,0.00017768,3]
[421421876,1777614638000,-500.0,0.00017024,2]
[421421880,1777614638000,-160.0,0.00017322,2]
[421421873,1777614638000,-164.55627619,0.00016293,2]
[421421874,1777614638000,-299.92394047,0.00016533,2]
[421421881,1777614638000,-164.55627619,0.00017685,2]
[421421894,1777614638000,-334.97998546,0.00018533,2]
[421421888,1777614638000,-232.597,0.00018325,2]
[421421895,1777614638000,-193.867,0.00018752,2]
[421421893,1777614638000,-1115.5239323,0.0001853,2]
[421421887,1777614638000,-185.0,0.00018325,2]
[421421884,1777614638000,-646.0,0.00018325,2]
[421421886,1777614638000,-442.0,0.00018325,2]
[421421883,1777614638000,-1410.0,0.00018325,2]
[421421885,1777614638000,-2211.0,0.00018325,2]
[421421891,1777614638000,-4334.4644576,0.0001853,2]
[421421941,1777614639000,-500.0,0.00019178,2]
[421421953,1777614639000,-500.0,0.00019178,2]
[421421942,1777614639000,-500.0,0.00019178,2]
[421421944,1777614639000,-385.06058978,0.00019178,2]
[421421947,1777614639000,-500.0,0.00019178,2]
[421421949,1777614639000,-961.77,0.00019178,2]
[421421950,1777614639000,-500.0,0.00019178,2]
[421421954,1777614639000,-500.0,0.00019178,2]
[421421957,1777614639000,-500.0,0.00019178,2]
[421421948,1777614639000,-500.0,0.00019178,2]
[421421952,1777614639000,-500.0,0.00019178,2]
[421421958,1777614639000,-500.0,0.00019178,2]
[421421955,1777614639000,-597.21,0.00019178,2]
[421421956,1777614639000,-500.0,0.00019178,2]
[421421960,1777614639000,-500.0,0.00019178,2]
[421421959,1777614639000,-500.0,0.00019178,2]
[421421938,1777614639000,-500.0,0.00019178,2]
[421421951,1777614639000,-500.0,0.00019178,2]
[421421939,1777614639000,-539.98686151,0.00019178,2]
[421421927,1777614639000,-500.0,0.00019178,2]
[421421937,1777614639000,-919.03,0.00019178,2]
[421421961,1777614639000,-500.0,0.00019178,2]
[421421921,1777614639000,-151.0,0.00019178,2]
[421421924,1777614639000,-500.0,0.00019178,2]
[421421923,1777614639000,-162.38610595,0.00019178,2]
[421421933,1777614639000,-500.0,0.00019178,2]
[421421925,1777614639000,-574.21,0.00019178,2]
[421421922,1777614639000,-151.0,0.00019178,2]
[421421926,1777614639000,-967.01,0.00019178,2]
[421421930,1777614639000,-375.61451447,0.00019178,2]
[421421928,1777614639000,-500.0,0.00019178,2]
[421421931,1777614639000,-1059.97,0.00019178,2]
[421421932,1777614639000,-500.0,0.00019178,2]
[421421929,1777614639000,-500.0,0.00019178,2]
[421421935,1777614639000,-2331.32,0.00019178,2]
[421421940,1777614639000,-500.0,0.00019178,2]
[421421946,1777614639000,-575.01,0.00019178,2]
[421421934,1777614639000,-777.76,0.00019178,2]
[421421943,1777614639000,-500.0,0.00019178,2]
[421421936,1777614639000,-560.81,0.00019178,2]
[421421945,1777614639000,-603.5,0.00019178,2]
[421421962,1777614639000,-500.0,0.00019178,2]
[421421965,1777614639000,-2180.57734244,0.00019178,2]
[421421963,1777614639000,-500.0,0.00019178,2]
[421421991,1777614639000,-500.0,0.00019178,2]
[421421996,1777614639000,-500.0,0.00019178,2]
[421421997,1777614639000,-1000.0,0.00019178,2]
[421421993,1777614639000,-860.58,0.00019178,2]
[421421994,1777614639000,-500.0,0.00019178,2]
[421421990,1777614639000,-500.0,0.00019178,2]
[421421995,1777614639000,-500.0,0.00019178,2]
[421422001,1777614639000,-500.0,0.00019178,2]
[421421992,1777614639000,-966.28,0.00019178,2]
[421422000,1777614639000,-355.75739815,0.00019178,2]
[421422005,1777614639000,-583.9,0.00019178,2]
[421422003,1777614639000,-500.0,0.00019178,2]
[421422010,1777614639000,-500.0,0.00019178,2]
[421422008,1777614639000,-1569.41,0.00019178,2]
[421422006,1777614639000,-610.93,0.00019178,2]
[421422004,1777614639000,-500.0,0.00019178,2]
[421422009,1777614639000,-552.11,0.00019178,2]
[421421964,1777614639000,-631.58,0.00019178,2]
[421422007,1777614639000,-500.0,0.00019178,2]
[421421989,1777614639000,-500.0,0.00019178,2]
[421422002,1777614639000,-503.11808723,0.00019178,2]
[421421999,1777614639000,-500.0,0.00019178,2]
[421421967,1777614639000,-852.65265756,0.00019178,2]
[421421987,1777614639000,-2730.12,0.00019178,2]
[421421969,1777614639000,-500.0,0.00019178,2]
[421421971,1777614639000,-599.13511518,0.00019178,2]
[421421972,1777614639000,-500.0,0.00019178,2]
[421421973,1777614639000,-893.55,0.00019178,2]
[421421985,1777614639000,-500.0,0.00019178,2]
[421421984,1777614639000,-500.0,0.00019178,2]
[421421978,1777614639000,-500.0,0.00019178,2]
[421421975,1777614639000,-972.89,0.00019178,2]
[421421979,1777614639000,-959.02,0.00019178,2]
[421421982,1777614639000,-500.0,0.00019178,2]
[421421983,1777614639000,-500.0,0.00019178,2]
[421421981,1777614639000,-1174.66,0.00019178,2]
[421421976,1777614639000,-881.28,0.00019178,2]
[421421980,1777614639000,-1125.14,0.00019178,2]
[421421986,1777614639000,-500.0,0.00019178,2]
[421421988,1777614639000,-915.43,0.00019178,2]
[421421998,1777614639000,-500.0,0.00019178,2]
[421422056,1777614640000,-985.71,0.00019178,2]
[421422055,1777614640000,-500.0,0.00019178,2]
[421422054,1777614640000,-846.5,0.00019178,2]
[421422044,1777614640000,-500.0,0.00019178,2]
[421422038,1777614640000,-751.96,0.00019178,2]
[421422039,1777614640000,-500.0,0.00019178,2]
[421422042,1777614640000,-1475.1,0.00019178,2]
[421422050,1777614640000,-500.0,0.00019178,2]
[421422041,1777614640000,-2651.75,0.00019178,2]
[421422043,1777614640000,-2763.95,0.00019178,2]
[421422058,1777614640000,-500.0,0.00019178,2]
[421422045,1777614640000,-500.0,0.00019178,2]
[421422046,1777614640000,-600.69,0.00019178,2]
[421422048,1777614640000,-500.0,0.00019178,2]
[421422051,1777614640000,-500.0,0.00019178,2]
[421422047,1777614640000,-500.0,0.00019178,2]
[421422052,1777614640000,-500.0,0.00019178,2]
[421422053,1777614640000,-500.0,0.00019178,2]
[421422068,1777614640000,-577.11427771,0.00019178,2]
[421422070,1777614640000,-823.2,0.00019178,2]
[421422040,1777614640000,-300.0,0.00019178,2]
[421422049,1777614640000,-578.37929316,0.00019178,2]
[421422034,1777614640000,-1164.1,0.00019178,2]
[421422013,1777614640000,-500.0,0.00019178,2]
[421422028,1777614640000,-832.77,0.00019178,2]
[421422069,1777614640000,-500.0,0.00019178,2]
[421422011,1777614640000,-500.0,0.00019178,2]
[421422012,1777614640000,-501.80586578,0.00019178,2]
[421422024,1777614640000,-664.7,0.00019178,2]
[421422025,1777614640000,-500.0,0.00019178,2]
[421422014,1777614640000,-500.0,0.00019178,2]
[421422026,1777614640000,-1406.95,0.00019178,2]
[421422021,1777614640000,-500.0,0.00019178,2]
[421422018,1777614640000,-500.0,0.00019178,2]
[421422015,1777614640000,-500.0,0.00019178,2]
[421422019,1777614640000,-500.0,0.00019178,2]
[421422017,1777614640000,-500.0,0.00019178,2]
[421422016,1777614640000,-1198.91,0.00019178,2]
[421422020,1777614640000,-500.0,0.00019178,2]
[421422023,1777614640000,-500.0,0.00019178,2]
[421422033,1777614640000,-500.0,0.00019178,2]
[421422027,1777614640000,-500.0,0.00019178,2]
[421422029,1777614640000,-608.43891374,0.00019178,2]
[421422030,1777614640000,-569.9,0.00019178,2]
[421422031,1777614640000,-532.21,0.00019178,2]
[421422037,1777614640000,-1106.57202,0.00019178,2]
[421422036,1777614640000,-500.0,0.00019178,2]
[421422060,1777614640000,-829.25,0.00019178,2]
[421422022,1777614640000,-500.0,0.00019178,2]
[421422061,1777614640000,-500.0,0.00019178,2]
[421422090,1777614640000,-500.0,0.00019178,2]
[421422086,1777614640000,-501.21,0.00019178,2]
[421422092,1777614640000,-500.0,0.00019178,2]
[421422095,1777614640000,-500.0,0.00019178,2]
[421422097,1777614640000,-1800.68,0.00019178,2]
[421422099,1777614640000,-500.0,0.00019178,2]
[421422109,1777614640000,-500.0,0.00019178,2]
[421422110,1777614640000,-500.0,0.00019178,2]
[421422113,1777614640000,-1052.67500545,0.00019178,2]
[421422098,1777614640000,-500.0,0.00019178,2]
[421422093,1777614640000,-500.0,0.00019178,2]
[421422101,1777614640000,-151.0,0.00019178,2]
[421422104,1777614640000,-525.59,0.00019178,2]
[421422102,1777614640000,-151.0,0.00019178,2]
[421422100,1777614640000,-151.0,0.00019178,2]
[421422108,1777614640000,-500.0,0.00019178,2]
[421422103,1777614640000,-261.35478764,0.00019178,2]
[421422106,1777614640000,-282.557445,0.00019178,2]
[421422105,1777614640000,-151.0,0.00019178,2]
[421422112,1777614640000,-500.0,0.00019178,2]
[421422111,1777614640000,-500.0,0.00019178,2]
[421422064,1777614640000,-436.54068416,0.00019178,2]
[421422107,1777614640000,-1859.69,0.00019178,2]
[421422094,1777614640000,-500.0,0.00019178,2]
[421422089,1777614640000,-500.0,0.00019178,2]
[421422074,1777614640000,-954.09,0.00019178,2]
[421422059,1777614640000,-1309.94,0.00019178,2]
[421422057,1777614640000,-500.0,0.00019178,2]
[421422071,1777614640000,-500.0,0.00019178,2]
[421422062,1777614640000,-2195.18,0.00019178,2]
[421422073,1777614640000,-500.0,0.00019178,2]
[421422083,1777614640000,-551.61,0.00019178,2]
[421422084,1777614640000,-879.91,0.00019178,2]
[421422072,1777614640000,-508.14,0.00019178,2]
[421422091,1777614640000,-500.0,0.00019178,2]
[421422075,1777614640000,-500.0,0.00019178,2]
[421422079,1777614640000,-500.0,0.00019178,2]
[421422076,1777614640000,-500.0,0.00019178,2]
[421422080,1777614640000,-3627.65,0.00019178,2]
[421422077,1777614640000,-500.0,0.00019178,2]
[421422078,1777614640000,-500.0,0.00019178,2]
[421422082,1777614640000,-500.0,0.00019178,2]
[421422081,1777614640000,-500.0,0.00019178,2]
[421422085,1777614640000,-500.0,0.00019178,2]
[421422087,1777614640000,-546.46,0.00019178,2]
[421422096,1777614640000,-516.55,0.00019178,2]
[421422088,1777614640000,-1727.24,0.00019178,2]
[421422067,1777614640000,-766.11,0.00019178,2]
[421422066,1777614640000,-500.0,0.00019178,2]
[421422114,1777614641000,-1000.0,0.00016273,2]
[421422115,1777614641000,-492.0,0.00016273,2]
[421422118,1777614641000,-308.875064,0.00019063,7]
[421422117,1777614641000,-791.0,0.000179,2]
[421422120,1777614641000,-1282.51,0.00019178,2]
[421422119,1777614641000,-755.14499455,0.00019178,2]
[421422121,1777614641000,-2077.96962694,0.00019178,2]
[421422116,1777614641000,-1000.0,0.000179,2]
[421422129,1777614642000,-5000.0,0.0001611,2]
[421422132,1777614643000,-504.14,0.00019178,2]
[421422133,1777614643000,-500.0,0.00019178,2]
[421422131,1777614643000,-4081.25037306,0.00019178,2]
[421422134,1777614643000,-3084.71,0.00019178,2]
[421422135,1777614643000,-500.0,0.00019178,2]
[421422136,1777614643000,-500.0,0.00019178,2]
[421422146,1777614643000,-622.63,0.00019178,2]
[421422145,1777614643000,-506.14,0.00019178,2]
[421422139,1777614643000,-6572.27,0.00019178,2]
[421422141,1777614643000,-966.64,0.00019178,2]
[421422130,1777614643000,-334.19063504,0.00018794,2]
[421422138,1777614643000,-500.0,0.00019178,2]
[421422140,1777614643000,-573.47,0.00019178,2]
[421422144,1777614643000,-620.8,0.00019178,2]
[421422142,1777614643000,-500.0,0.00019178,2]
[421422143,1777614643000,-500.0,0.00019178,2]
[421422147,1777614643000,-874.79,0.00019178,2]
[421422148,1777614643000,-500.0,0.00019178,2]
[421422150,1777614643000,-500.0,0.00019178,2]
[421422151,1777614643000,-1659.15,0.00019178,2]
[421422152,1777614643000,-519.22687821,0.00019178,2]
[421422137,1777614643000,-1202.48,0.00019178,2]
[421422149,1777614643000,-500.0,0.00019178,2]
[421422162,1777614646000,-2052.93,0.00019178,2]
[421422161,1777614646000,-911.78,0.00019178,2]
[421422159,1777614646000,-800.86312179,0.00019178,2]
[421422157,1777614646000,-222.79375669,0.00018794,2]
[421422160,1777614646000,-500.0,0.00019178,2]
[421422158,1777614646000,-500.0,0.00018977,2]
[421422163,1777614646000,-680.0,0.00019178,2]
[421422156,1777614646000,-165.61612407,0.000149,2]
[421422173,1777614646000,-339.23655994,0.00019178,2]
[421422167,1777614646000,-813.54,0.00019178,2]
[421422164,1777614646000,-2713.92,0.00019178,2]
[421422165,1777614646000,-500.0,0.00019178,2]
[421422170,1777614646000,-500.0,0.00019178,2]
[421422172,1777614646000,-671.27,0.00019178,2]
[421422168,1777614646000,-373.98070691,0.00019178,2]
[421422169,1777614646000,-500.0,0.00019178,2]
[421422171,1777614646000,-500.0,0.00019178,2]
[421422166,1777614646000,-500.0,0.00019178,2]
[421422174,1777614646000,-31.33820975,0.00019178,2]
[421422186,1777615274000,-5000.0,0.00010177,2]
[421422187,1777615297000,-2468.97902864,0.00010075,2]
[421422188,1777615315000,-2531.02097136,0.00010075,2]
[421422189,1777615333000,-300.0,0.0001028,2]
[421422190,1777615351000,-5000.0,0.00010177,2]
[421422191,1777615373000,-797.0,0.0001028,2]
[421422239,1777615785000,378.84213157,0.00021918,120]
[421422257,1777615831000,-300.0,0.00010075,2]
[421422258,1777615831000,-797.0,0.00010075,2]
[421422260,1777615831000,-561.0,0.00010075,2]
[421422261,1777615831000,-5000.0,0.00010076,2]
[421422264,1777615831000,-151.0,0.00010597,2]
[421422263,1777615831000,-500.0,0.00010281,2]
[421422262,1777615831000,-194.01524647,0.0001023,2]
[421422294,1777615832000,-160.0,0.00017298,2]
[421422280,1777615832000,-500.0,0.00014772,2]
[421422282,1777615832000,-500.0,0.00014772,2]
[421422284,1777615832000,-500.0,0.00014773,2]
[421422276,1777615832000,-2726.55,0.00013953,2]